[Event "*** Titled Tuesday Blitz"]
[Site "Chess.com"]
[Date "2021.03.02"]
[Round "8"]
[White "GregShahade"]
[Black "kleopl"]
[Result "1-0"]
[WhiteElo "2637"]
[BlackElo "2482"]
[TimeControl "180+1"]
[EndTime "11:30:31 PST"]
[Termination "GregShahade won by checkmate"]

1. e4 {[%clk 0:03:00.9]} 1... c6 {[%clk 0:02:59.7]} 2. Nc3 {[%clk 0:03:00.1]}
2... d5 {[%clk 0:03:00.6]} 3. Nf3 {[%clk 0:03:00.5]} 3... a6 {[%clk 0:02:59]} 4.
d4 {[%clk 0:03:00.1]} 4... Bg4 {[%clk 0:02:58.4]} 5. h3 {[%clk 0:03:00.1]} 5...
Bh5 {[%clk 0:02:58.3]} 6. g4 {[%clk 0:02:54.2]} 6... Bg6 {[%clk 0:02:58.2]} 7.
exd5 {[%clk 0:02:52.3]} 7... cxd5 {[%clk 0:02:57.8]} 8. Ne5 {[%clk 0:02:49.9]}
8... Nc6 {[%clk 0:02:56.6]} 9. h4 {[%clk 0:02:47.6]} 9... f6 {[%clk 0:02:52.2]}
10. Nxg6 {[%clk 0:02:46.3]} 10... hxg6 {[%clk 0:02:53.1]} 11. Qd3 {[%clk
0:02:44.2]} 11... Kf7 {[%clk 0:02:49.6]} 12. h5 {[%clk 0:02:43.4]} 12... gxh5
{[%clk 0:02:41.3]} 13. gxh5 {[%clk 0:02:43]} 13... e6 {[%clk 0:02:40.7]} 14. Bd2
{[%clk 0:02:36.1]} 14... Qb6 {[%clk 0:02:32.2]} 15. O-O-O {[%clk 0:02:26.2]}
15... Qxd4 {[%clk 0:02:28.8]} 16. Qg6+ {[%clk 0:02:17.9]} 16... Ke7 {[%clk
0:02:28.9]} 17. Be3 {[%clk 0:02:01.8]} 17... Qe5 {[%clk 0:02:24]} 18. Bc5+
{[%clk 0:01:56]} 18... Kd7 {[%clk 0:02:18.4]} 19. Bxf8 {[%clk 0:01:55.8]} 19...
Rxf8 {[%clk 0:02:19.3]} 20. Bh3 {[%clk 0:01:35.2]} 20... Nge7 {[%clk 0:02:16.8]}
21. Qd3 {[%clk 0:01:13]} 21... Rxh5 {[%clk 0:01:59]} 22. Bxe6+ {[%clk
0:01:10.2]} 22... Kc7 {[%clk 0:01:40.6]} 23. Rhe1 {[%clk 0:01:10]} 23... Qf4+
{[%clk 0:01:37.9]} 24. Kb1 {[%clk 0:01:09.1]} 24... Qxf2 {[%clk 0:01:31.9]} 25.
Nxd5+ {[%clk 0:00:46.8]} 25... Nxd5 {[%clk 0:01:30.6]} 26. Bxd5 {[%clk
0:00:47.3]} 26... Rd8 {[%clk 0:01:28.2]} 27. c4 {[%clk 0:00:45.8]} 27... Qf5
{[%clk 0:01:21.7]} 28. Re4 {[%clk 0:00:39]} 28... Nb4 {[%clk 0:01:14.3]} 29.
Qg3+ {[%clk 0:00:38.8]} 29... Kb6 {[%clk 0:01:00.5]} 30. Qe3+ {[%clk 0:00:35.9]}
30... Kc7 {[%clk 0:00:57.7]} 31. Qc5+ {[%clk 0:00:34.1]} 31... Nc6 {[%clk
0:00:56.8]} 32. Re1 {[%clk 0:00:24.6]} 32... Rh4 {[%clk 0:00:41.7]} 33. Kc1
{[%clk 0:00:20.2]} 33... Rxe4 {[%clk 0:00:40.1]} 34. Rxe4 {[%clk 0:00:21.1]}
34... Qg5+ {[%clk 0:00:33.9]} 35. Kb1 {[%clk 0:00:16.2]} 35... Rd7 {[%clk
0:00:31.2]} 36. a3 {[%clk 0:00:12.9]} 36... f5 {[%clk 0:00:27]} 37. Bxc6 {[%clk
0:00:10.5]} 37... bxc6 {[%clk 0:00:23.7]} 38. Qa7+ {[%clk 0:00:10.6]} 38... Kc8
{[%clk 0:00:17.8]} 39. Qa8+ {[%clk 0:00:10.2]} 39... Kc7 {[%clk 0:00:17.9]} 40.
Qa7+ {[%clk 0:00:11]} 40... Kc8 {[%clk 0:00:18]} 41. Re8+ {[%clk 0:00:11.8]}
41... Rd8 {[%clk 0:00:18.5]} 42. Qa8+ {[%clk 0:00:12.2]} 42... Kd7 {[%clk
0:00:16.9]} 43. Rxd8+ {[%clk 0:00:12.5]} 43... Qxd8 {[%clk 0:00:16.8]} 44. Qxa6
{[%clk 0:00:13.1]} 44... f4 {[%clk 0:00:15.2]} 45. Qa7+ {[%clk 0:00:13.7]} 45...
Qc7 {[%clk 0:00:15.5]} 46. Qd4+ {[%clk 0:00:14.2]} 46... Kc8 {[%clk 0:00:14.1]}
47. Qe4 {[%clk 0:00:14.6]} 47... g5 {[%clk 0:00:12.6]} 48. Qf5+ {[%clk
0:00:14.6]} 48... Qd7 {[%clk 0:00:09.9]} 49. Qxg5 {[%clk 0:00:15.1]} 49... f3
{[%clk 0:00:09.7]} 50. Qg8+ {[%clk 0:00:13.5]} 50... Kb7 {[%clk 0:00:09.4]} 51.
Qf8 {[%clk 0:00:12.8]} 51... Qd3+ {[%clk 0:00:08.5]} 52. Ka1 {[%clk 0:00:12.4]}
52... Qf1+ {[%clk 0:00:08.7]} 53. Ka2 {[%clk 0:00:12.3]} 53... Qxc4+ {[%clk
0:00:09.6]} 54. Kb1 {[%clk 0:00:12.1]} 54... Qd3+ {[%clk 0:00:09.6]} 55. Ka2
{[%clk 0:00:12.2]} 55... Qd5+ {[%clk 0:00:09.8]} 56. Kb1 {[%clk 0:00:12.4]}
56... Kb6 {[%clk 0:00:10.3]} 57. Qb8+ {[%clk 0:00:11.9]} 57... Kc5 {[%clk
0:00:10.2]} 58. Qb4# {[%clk 0:00:12.3]} 1-0

[Event "*** Titled Tuesday Blitz"]
[Site "Chess.com"]
[Date "2021.03.02"]
[Round "8"]
[White "elohunter1999"]
[Black "BahadirOzen"]
[Result "1-0"]
[WhiteElo "2642"]
[BlackElo "2773"]
[TimeControl "180+1"]
[EndTime "11:30:35 PST"]
[Termination "elohunter1999 won on time"]

1. Nf3 {[%clk 0:03:00.9]} 1... d6 {[%clk 0:03:00]} 2. e4 {[%clk 0:02:54.1]} 2...
g6 {[%clk 0:02:59.7]} 3. d4 {[%clk 0:02:52.7]} 3... Bg7 {[%clk 0:02:59.9]} 4.
Nc3 {[%clk 0:02:51.6]} 4... c6 {[%clk 0:02:59.1]} 5. Be3 {[%clk 0:02:51.4]} 5...
b5 {[%clk 0:02:57.7]} 6. Bd3 {[%clk 0:02:48.9]} 6... Nd7 {[%clk 0:02:57.2]} 7.
Qd2 {[%clk 0:02:46.5]} 7... Qc7 {[%clk 0:02:56.4]} 8. h3 {[%clk 0:02:45.2]} 8...
a6 {[%clk 0:02:46.3]} 9. O-O {[%clk 0:02:33.6]} 9... Ngf6 {[%clk 0:02:38.4]} 10.
Ne2 {[%clk 0:02:33.4]} 10... O-O {[%clk 0:02:34.4]} 11. Ng3 {[%clk 0:02:33.2]}
11... c5 {[%clk 0:02:28]} 12. c3 {[%clk 0:02:32]} 12... e5 {[%clk 0:02:11.9]}
13. Bh6 {[%clk 0:02:27.4]} 13... Re8 {[%clk 0:02:02]} 14. Rad1 {[%clk
0:02:23.5]} 14... Bb7 {[%clk 0:02:00.4]} 15. Rfe1 {[%clk 0:02:19.2]} 15... Rad8
{[%clk 0:01:21.6]} 16. d5 {[%clk 0:02:07.3]} 16... c4 {[%clk 0:01:21.1]} 17. Bc2
{[%clk 0:02:07.2]} 17... Nc5 {[%clk 0:01:19.6]} 18. Nh2 {[%clk 0:02:06]} 18...
Bc8 {[%clk 0:01:16.5]} 19. Rf1 {[%clk 0:02:03.6]} 19... Kh8 {[%clk 0:00:51.7]}
20. Bxg7+ {[%clk 0:01:50.9]} 20... Kxg7 {[%clk 0:00:51.6]} 21. f4 {[%clk
0:01:51.8]} 21... exf4 {[%clk 0:00:45.6]} 22. Rxf4 {[%clk 0:01:48]} 22... Ng8
{[%clk 0:00:46.5]} 23. Rdf1 {[%clk 0:01:40.6]} 23... Rf8 {[%clk 0:00:46.1]} 24.
Kh1 {[%clk 0:01:31.8]} 24... Qe7 {[%clk 0:00:45.8]} 25. Ng4 {[%clk 0:01:29]}
25... Bxg4 {[%clk 0:00:45.3]} 26. Rxg4 {[%clk 0:01:29]} 26... Kh8 {[%clk
0:00:45.7]} 27. Rgf4 {[%clk 0:01:21.1]} 27... f6 {[%clk 0:00:43.8]} 28. Ne2
{[%clk 0:01:20.3]} 28... Rde8 {[%clk 0:00:40]} 29. Nd4 {[%clk 0:01:19.8]} 29...
Qg7 {[%clk 0:00:37]} 30. R1f3 {[%clk 0:01:13.6]} 30... Nh6 {[%clk 0:00:33.8]}
31. Rg3 {[%clk 0:01:12.3]} 31... Ng8 {[%clk 0:00:27.9]} 32. Rh4 {[%clk
0:01:08.3]} 32... Qf7 {[%clk 0:00:20.4]} 33. Kh2 {[%clk 0:01:04.4]} 33... Re5
{[%clk 0:00:18.7]} 34. Nc6 {[%clk 0:01:03.5]} 34... Rh5 {[%clk 0:00:16.9]} 35.
Rxh5 {[%clk 0:01:00.3]} 35... gxh5 {[%clk 0:00:17.8]} 36. Qf4 {[%clk 0:00:58.6]}
36... Nb7 {[%clk 0:00:15.1]} 37. a4 {[%clk 0:00:50.7]} 37... Ne7 {[%clk
0:00:15.3]} 38. Nd4 {[%clk 0:00:49.8]} 38... Ng6 {[%clk 0:00:14.2]} 39. Qf5
{[%clk 0:00:49.6]} 39... Nc5 {[%clk 0:00:14.6]} 40. axb5 {[%clk 0:00:45.1]}
40... h4 {[%clk 0:00:14.7]} 41. Rg4 {[%clk 0:00:40.9]} 41... axb5 {[%clk
0:00:14.6]} 42. Nxb5 {[%clk 0:00:39.8]} 42... Qe7 {[%clk 0:00:12.1]} 43. Nd4
{[%clk 0:00:30.8]} 43... Qe5+ {[%clk 0:00:12.4]} 44. Qxe5 {[%clk 0:00:30.8]}
44... fxe5 {[%clk 0:00:13.3]} 45. Nf5 {[%clk 0:00:30.8]} 45... Rb8 {[%clk
0:00:10.5]} 46. Nxd6 {[%clk 0:00:29.7]} 46... Rxb2 {[%clk 0:00:11.4]} 47. Bd1
{[%clk 0:00:29.8]} 47... Rd2 {[%clk 0:00:08.9]} 48. Bf3 {[%clk 0:00:29.6]} 48...
Na4 {[%clk 0:00:08.8]} 49. Nf7+ {[%clk 0:00:29]} 49... Kg7 {[%clk 0:00:08.2]}
50. Nxe5 {[%clk 0:00:29.3]} 50... Nxc3 {[%clk 0:00:08.7]} 51. Nxc4 {[%clk
0:00:28.5]} 51... Rd4 {[%clk 0:00:09.2]} 52. Ne5 {[%clk 0:00:27.8]} 52... Kf6
{[%clk 0:00:06.5]} 53. Nxg6 {[%clk 0:00:27.5]} 53... hxg6 {[%clk 0:00:07.4]} 54.
e5+ {[%clk 0:00:23.3]} 54... Kxe5 {[%clk 0:00:07.7]} 55. Rxd4 {[%clk 0:00:24]}
55... Kxd4 {[%clk 0:00:08.6]} 56. d6 {[%clk 0:00:24.5]} 1-0

[Event "*** Titled Tuesday Blitz"]
[Site "Chess.com"]
[Date "2021.03.02"]
[Round "8"]
[White "elextranjero00"]
[Black "AttackSparrow"]
[Result "1-0"]
[WhiteElo "2652"]
[BlackElo "2542"]
[TimeControl "180+1"]
[EndTime "11:30:36 PST"]
[Termination "elextranjero00 won by checkmate"]

1. d4 {[%clk 0:03:00.9]} 1... Nf6 {[%clk 0:03:00]} 2. Nf3 {[%clk 0:02:57.8]}
2... c5 {[%clk 0:02:57.9]} 3. d5 {[%clk 0:02:56.4]} 3... g6 {[%clk 0:02:57.7]}
4. Nc3 {[%clk 0:02:56.4]} 4... Bg7 {[%clk 0:02:57.6]} 5. e4 {[%clk 0:02:56.6]}
5... O-O {[%clk 0:02:58]} 6. Be2 {[%clk 0:02:52]} 6... d6 {[%clk 0:02:55.1]} 7.
O-O {[%clk 0:02:51.1]} 7... Na6 {[%clk 0:02:55.3]} 8. Re1 {[%clk 0:02:50.6]}
8... Nc7 {[%clk 0:02:55.2]} 9. h3 {[%clk 0:02:45.9]} 9... a6 {[%clk 0:02:55.4]}
10. a4 {[%clk 0:02:45.7]} 10... b6 {[%clk 0:02:55.8]} 11. Bf4 {[%clk 0:02:44.8]}
11... Bb7 {[%clk 0:02:56.2]} 12. Bc4 {[%clk 0:02:45]} 12... Qd7 {[%clk
0:02:55.7]} 13. Qd3 {[%clk 0:02:44]} 13... Nh5 {[%clk 0:02:53.9]} 14. Bh2 {[%clk
0:02:41.5]} 14... Bxc3 {[%clk 0:02:54.1]} 15. Qxc3 {[%clk 0:02:38.8]} 15... b5
{[%clk 0:02:54.2]} 16. Bf1 {[%clk 0:02:37.6]} 16... f5 {[%clk 0:02:50.9]} 17.
axb5 {[%clk 0:02:05.1]} 17... fxe4 {[%clk 0:02:40.1]} 18. Rxe4 {[%clk
0:01:42.7]} 18... Bxd5 {[%clk 0:02:34.4]} 19. Re3 {[%clk 0:01:32.5]} 19... axb5
{[%clk 0:02:28.3]} 20. Rxa8 {[%clk 0:01:30.9]} 20... Bxa8 {[%clk 0:02:28.8]} 21.
Qe1 {[%clk 0:01:20.5]} 21... e5 {[%clk 0:02:26.9]} 22. Nxe5 {[%clk 0:00:57.9]}
22... dxe5 {[%clk 0:02:26.1]} 23. Bxe5 {[%clk 0:00:58.8]} 23... Nd5 {[%clk
0:02:21]} 24. Qd2 {[%clk 0:00:47.9]} 24... Qc6 {[%clk 0:02:12.2]} 25. Re1 {[%clk
0:00:44.8]} 25... c4 {[%clk 0:02:07.9]} 26. Qd4 {[%clk 0:00:31.2]} 26... Ndf4
{[%clk 0:02:02.1]} 27. Bxf4 {[%clk 0:00:24.7]} 27... Nxf4 {[%clk 0:02:03]} 28.
Re7 {[%clk 0:00:24]} 28... Ne2+ {[%clk 0:01:57.5]} 29. Rxe2 {[%clk 0:00:23.2]}
29... Qf6 {[%clk 0:01:47.7]} 30. Qxf6 {[%clk 0:00:19.1]} 30... Rxf6 {[%clk
0:01:48.6]} 31. Re8+ {[%clk 0:00:19.2]} 31... Rf8 {[%clk 0:01:49.2]} 32. Rxf8+
{[%clk 0:00:19.6]} 32... Kxf8 {[%clk 0:01:50.1]} 33. f4 {[%clk 0:00:19.6]} 33...
Ke7 {[%clk 0:01:49.7]} 34. Kf2 {[%clk 0:00:19.7]} 34... Kd6 {[%clk 0:01:50.2]}
35. Ke3 {[%clk 0:00:19.8]} 35... Kc5 {[%clk 0:01:50.7]} 36. c3 {[%clk
0:00:19.8]} 36... b4 {[%clk 0:01:49.9]} 37. g4 {[%clk 0:00:18.9]} 37... Bd5
{[%clk 0:01:44.4]} 38. f5 {[%clk 0:00:16.1]} 38... gxf5 {[%clk 0:01:37.2]} 39.
gxf5 {[%clk 0:00:17]} 39... bxc3 {[%clk 0:01:33.2]} 40. bxc3 {[%clk 0:00:16.7]}
40... Bf7 {[%clk 0:01:33.6]} 41. Be2 {[%clk 0:00:15.5]} 41... Kd5 {[%clk
0:01:31.9]} 42. Kf4 {[%clk 0:00:14.8]} 42... Kd6 {[%clk 0:01:30.6]} 43. h4
{[%clk 0:00:06.4]} 43... Bg8 {[%clk 0:01:30.6]} 44. f6 {[%clk 0:00:04.3]} 44...
Bf7 {[%clk 0:01:30.2]} 45. Kg5 {[%clk 0:00:03.9]} 45... Ke5 {[%clk 0:01:30.2]}
46. Bg4 {[%clk 0:00:04.2]} 46... h6+ {[%clk 0:01:23.4]} 47. Kxh6 {[%clk
0:00:04.4]} 47... Kxf6 {[%clk 0:01:24.3]} 48. Be2 {[%clk 0:00:04.5]} 48... Be6
{[%clk 0:01:22.7]} 49. Kh5 {[%clk 0:00:03.4]} 49... Ke5 {[%clk 0:01:13.5]} 50.
Kg5 {[%clk 0:00:03.5]} 50... Ke4 {[%clk 0:00:53.1]} 51. h5 {[%clk 0:00:04]}
51... Ke3 {[%clk 0:00:48.7]} 52. h6 {[%clk 0:00:04.5]} 52... Bg8 {[%clk
0:00:46.2]} 53. Bxc4 {[%clk 0:00:04.7]} 53... Bh7 {[%clk 0:00:45.3]} 54. Kf6
{[%clk 0:00:05]} 54... Kd2 {[%clk 0:00:44.8]} 55. Kg7 {[%clk 0:00:05.3]} 55...
Be4 {[%clk 0:00:44.2]} 56. Bf7 {[%clk 0:00:05.5]} 56... Kxc3 {[%clk 0:00:38]}
57. Bg6 {[%clk 0:00:05.6]} 57... Bd5 {[%clk 0:00:36.9]} 58. h7 {[%clk
0:00:05.9]} 58... Bc4 {[%clk 0:00:37.8]} 59. h8=Q {[%clk 0:00:06.8]} 59... Kb4
{[%clk 0:00:38.7]} 60. Qh6 {[%clk 0:00:07.3]} 60... Kc3 {[%clk 0:00:39.6]} 61.
Kf6 {[%clk 0:00:08.2]} 61... Kd4 {[%clk 0:00:40.5]} 62. Qg5 {[%clk 0:00:09.1]}
62... Kc3 {[%clk 0:00:41.2]} 63. Qf4 {[%clk 0:00:09.4]} 63... Kb4 {[%clk
0:00:42.1]} 64. Ke5 {[%clk 0:00:10.2]} 64... Kc3 {[%clk 0:00:42.9]} 65. Qd4+
{[%clk 0:00:10.8]} 65... Kb4 {[%clk 0:00:43.1]} 66. Bd3 {[%clk 0:00:10.9]} 66...
Kb3 {[%clk 0:00:44]} 67. Qxc4+ {[%clk 0:00:11]} 67... Kb2 {[%clk 0:00:44.9]} 68.
Qc2+ {[%clk 0:00:11.1]} 68... Ka3 {[%clk 0:00:45.3]} 69. Qb1 {[%clk 0:00:11.1]}
69... Ka4 {[%clk 0:00:45.6]} 70. Bc4 {[%clk 0:00:11.7]} 70... Ka5 {[%clk
0:00:46.5]} 71. Qb5# {[%clk 0:00:11.1]} 1-0

[Event "*** Titled Tuesday Blitz"]
[Site "Chess.com"]
[Date "2021.03.02"]
[Round "8"]
[White "ShimanovAlex"]
[Black "champ2005"]
[Result "0-1"]
[WhiteElo "2803"]
[BlackElo "3000"]
[TimeControl "180+1"]
[EndTime "11:30:37 PST"]
[Termination "champ2005 won on time"]

1. g3 {[%clk 0:03:00.9]} 1... e5 {[%clk 0:02:55.4]} 2. Bg2 {[%clk 0:02:59.9]}
2... Nc6 {[%clk 0:02:55.8]} 3. d3 {[%clk 0:02:58.9]} 3... Bc5 {[%clk 0:02:56.1]}
4. Nf3 {[%clk 0:02:58.8]} 4... d6 {[%clk 0:02:55.6]} 5. O-O {[%clk 0:02:59]}
5... a6 {[%clk 0:02:53.8]} 6. c3 {[%clk 0:02:57.9]} 6... Ba7 {[%clk 0:02:48.8]}
7. e4 {[%clk 0:02:56.2]} 7... Nge7 {[%clk 0:02:45.7]} 8. d4 {[%clk 0:02:54.4]}
8... O-O {[%clk 0:02:38.8]} 9. h3 {[%clk 0:02:41.6]} 9... h6 {[%clk 0:02:31.3]}
10. Re1 {[%clk 0:02:35.7]} 10... Ng6 {[%clk 0:02:09.3]} 11. Be3 {[%clk
0:02:33.2]} 11... Kh8 {[%clk 0:01:45.7]} 12. Nbd2 {[%clk 0:02:31.4]} 12... f5
{[%clk 0:01:43.3]} 13. exf5 {[%clk 0:02:31.3]} 13... Bxf5 {[%clk 0:01:43.7]} 14.
dxe5 {[%clk 0:02:29]} 14... Bxe3 {[%clk 0:01:41.5]} 15. Rxe3 {[%clk 0:02:28.8]}
15... Ncxe5 {[%clk 0:01:37.7]} 16. Nxe5 {[%clk 0:02:28.7]} 16... Nxe5 {[%clk
0:01:38.3]} 17. Qe2 {[%clk 0:02:27.9]} 17... c6 {[%clk 0:01:30.2]} 18. f4 {[%clk
0:02:28.1]} 18... Nd7 {[%clk 0:01:28.1]} 19. Nf3 {[%clk 0:02:28]} 19... Nf6
{[%clk 0:01:26.3]} 20. Nd4 {[%clk 0:02:26.5]} 20... Bd7 {[%clk 0:01:24.7]} 21.
Re1 {[%clk 0:02:24.7]} 21... Qa5 {[%clk 0:01:21.4]} 22. a3 {[%clk 0:02:23.7]}
22... Rae8 {[%clk 0:01:21.1]} 23. Qd2 {[%clk 0:02:18]} 23... Qd8 {[%clk
0:01:16.5]} 24. g4 {[%clk 0:02:12.4]} 24... c5 {[%clk 0:01:16.6]} 25. Ne6 {[%clk
0:02:09.3]} 25... Bxe6 {[%clk 0:01:16.4]} 26. Rxe6 {[%clk 0:02:10.2]} 26... d5
{[%clk 0:01:08.6]} 27. Rxe8 {[%clk 0:01:50.3]} 27... Rxe8 {[%clk 0:01:09.5]} 28.
Re5 {[%clk 0:01:50.7]} 28... Re7 {[%clk 0:00:46.1]} 29. b4 {[%clk 0:01:32.4]}
29... b6 {[%clk 0:00:45.7]} 30. Qe2 {[%clk 0:01:28.3]} 30... Rxe5 {[%clk
0:00:44.8]} 31. fxe5 {[%clk 0:01:29.2]} 31... Ng8 {[%clk 0:00:39.1]} 32. Qxa6
{[%clk 0:01:25.7]} 32... d4 {[%clk 0:00:39.1]} 33. Qd3 {[%clk 0:01:23.4]} 33...
Ne7 {[%clk 0:00:34.4]} 34. bxc5 {[%clk 0:01:18.5]} 34... bxc5 {[%clk 0:00:34.6]}
35. cxd4 {[%clk 0:01:19.2]} 35... cxd4 {[%clk 0:00:35.5]} 36. a4 {[%clk
0:01:19.8]} 36... Qb6 {[%clk 0:00:18.7]} 37. Qb5 {[%clk 0:01:14.9]} 37... Qd8
{[%clk 0:00:17.7]} 38. Be4 {[%clk 0:01:13.1]} 38... h5 {[%clk 0:00:11.9]} 39.
gxh5 {[%clk 0:01:11]} 39... Ng8 {[%clk 0:00:12.2]} 40. Qe2 {[%clk 0:01:06.9]}
40... Qg5+ {[%clk 0:00:12.4]} 41. Bg2 {[%clk 0:01:05.9]} 41... Qc1+ {[%clk
0:00:12.1]} 42. Bf1 {[%clk 0:01:05.1]} 42... Qg5+ {[%clk 0:00:12.2]} 43. Kh1
{[%clk 0:01:04.6]} 43... Qc1 {[%clk 0:00:07.6]} 44. a5 {[%clk 0:01:01.6]} 44...
Nh6 {[%clk 0:00:08]} 45. Qf3 {[%clk 0:00:46.9]} 45... Qa1 {[%clk 0:00:06.8]} 46.
e6 {[%clk 0:00:45.3]} 46... Qa3 {[%clk 0:00:04.4]} 47. a6 {[%clk 0:00:40.3]}
47... Qxf3+ {[%clk 0:00:04.5]} 0-1

[Event "*** Titled Tuesday Blitz"]
[Site "Chess.com"]
[Date "2021.03.02"]
[Round "8"]
[White "Sven_Tica"]
[Black "GigaQuparadze"]
[Result "0-1"]
[WhiteElo "2674"]
[BlackElo "2956"]
[TimeControl "180+1"]
[EndTime "11:30:38 PST"]
[Termination "GigaQuparadze won on time"]

1. d4 {[%clk 0:03:00.9]} 1... Nf6 {[%clk 0:02:59.6]} 2. c4 {[%clk 0:03:00.6]}
2... e6 {[%clk 0:03:00]} 3. g3 {[%clk 0:03:00.8]} 3... d5 {[%clk 0:02:59.2]} 4.
Bg2 {[%clk 0:03:01]} 4... Bb4+ {[%clk 0:02:59.3]} 5. Bd2 {[%clk 0:03:00.9]} 5...
a5 {[%clk 0:02:58.7]} 6. Nf3 {[%clk 0:03:00.1]} 6... O-O {[%clk 0:02:58.5]} 7.
Qc2 {[%clk 0:02:59.8]} 7... c5 {[%clk 0:02:58.5]} 8. a3 {[%clk 0:02:56.3]} 8...
Bxd2+ {[%clk 0:02:57.8]} 9. Nbxd2 {[%clk 0:02:57.2]} 9... cxd4 {[%clk
0:02:58.3]} 10. Nxd4 {[%clk 0:02:58]} 10... Qb6 {[%clk 0:02:58.4]} 11. e3 {[%clk
0:02:41.3]} 11... e5 {[%clk 0:02:56.8]} 12. Nb5 {[%clk 0:02:41.3]} 12... dxc4
{[%clk 0:02:55]} 13. a4 {[%clk 0:02:41.1]} 13... Nc6 {[%clk 0:02:51.8]} 14. Nxc4
{[%clk 0:02:40.9]} 14... Qc5 {[%clk 0:02:48.9]} 15. O-O {[%clk 0:02:38]} 15...
Nb4 {[%clk 0:02:48.5]} 16. Qc3 {[%clk 0:02:34.3]} 16... Nfd5 {[%clk 0:02:44.6]}
17. Qb3 {[%clk 0:02:26.7]} 17... Be6 {[%clk 0:02:42.3]} 18. Rac1 {[%clk
0:02:13]} 18... Nb6 {[%clk 0:02:35.1]} 19. Nxb6 {[%clk 0:02:09.7]} 19... Qxb6
{[%clk 0:02:35.4]} 20. Qc3 {[%clk 0:02:06.8]} 20... Rac8 {[%clk 0:02:33.2]} 21.
Qa3 {[%clk 0:01:46]} 21... Rfd8 {[%clk 0:02:27.2]} 22. Rxc8 {[%clk 0:01:25]}
22... Rxc8 {[%clk 0:02:28.1]} 23. Rd1 {[%clk 0:01:25.1]} 23... h5 {[%clk
0:02:26.1]} 24. h4 {[%clk 0:01:22.6]} 24... Bg4 {[%clk 0:01:50.1]} 25. Rd6
{[%clk 0:01:12.9]} 25... Qc5 {[%clk 0:01:50]} 26. Qc3 {[%clk 0:01:08]} 26...
Qxc3 {[%clk 0:01:39.1]} 27. Nxc3 {[%clk 0:01:05.9]} 27... Rc7 {[%clk 0:01:35.6]}
28. Rb6 {[%clk 0:01:03.8]} 28... Bc8 {[%clk 0:01:35]} 29. Rb5 {[%clk 0:01:00.3]}
29... Nd3 {[%clk 0:01:33.8]} 30. Rxa5 {[%clk 0:00:56]} 30... Nxb2 {[%clk
0:01:32.5]} 31. Nd5 {[%clk 0:00:53.8]} 31... Rc1+ {[%clk 0:01:31.9]} 32. Kh2
{[%clk 0:00:54]} 32... Be6 {[%clk 0:01:30.4]} 33. Nb4 {[%clk 0:00:49.1]} 33...
b6 {[%clk 0:01:26.2]} 34. Rxe5 {[%clk 0:00:47.5]} 34... Nxa4 {[%clk 0:01:23.6]}
35. Bd5 {[%clk 0:00:45.9]} 35... Bxd5 {[%clk 0:01:21]} 36. Nxd5 {[%clk
0:00:44.3]} 36... g6 {[%clk 0:01:21.2]} 37. Re4 {[%clk 0:00:42.2]} 37... Nc5
{[%clk 0:01:00.6]} 38. Re8+ {[%clk 0:00:40.8]} 38... Kg7 {[%clk 0:00:59.8]} 39.
Nxb6 {[%clk 0:00:37.8]} 39... Nd3 {[%clk 0:01:00.1]} 40. Nd5 {[%clk 0:00:33.2]}
40... Nxf2 {[%clk 0:00:58.9]} 41. Kg2 {[%clk 0:00:30.8]} 41... Ng4 {[%clk
0:00:58.6]} 42. Nf4 {[%clk 0:00:23.2]} 42... Rc2+ {[%clk 0:00:57.8]} 43. Kg1
{[%clk 0:00:16.1]} 43... Nh6 {[%clk 0:00:52.9]} 44. e4 {[%clk 0:00:15.2]} 44...
Ra2 {[%clk 0:00:46.8]} 45. Rd8 {[%clk 0:00:14.8]} 45... Ra4 {[%clk 0:00:43.9]}
46. e5 {[%clk 0:00:13.6]} 46... Nf5 {[%clk 0:00:43.7]} 47. e6 {[%clk 0:00:13]}
47... fxe6 {[%clk 0:00:42.3]} 48. Nxe6+ {[%clk 0:00:12.4]} 48... Kf6 {[%clk
0:00:42.5]} 49. Ng5 {[%clk 0:00:11]} 49... Nxg3 {[%clk 0:00:41.8]} 50. Rd6+
{[%clk 0:00:11.4]} 50... Kf5 {[%clk 0:00:40]} 51. Rd5+ {[%clk 0:00:11.6]} 51...
Kg4 {[%clk 0:00:39.4]} 52. Ne6 {[%clk 0:00:10]} 52... Kh3 {[%clk 0:00:35.3]} 53.
Rg5 {[%clk 0:00:08.6]} 53... Rg4 {[%clk 0:00:30.1]} 54. Nf8 {[%clk 0:00:02.8]}
54... Rf4 {[%clk 0:00:19.8]} 0-1